fUSD/lending_fUSD_20260505
["ID","MTS","AMOUNT","RATE_DAILY","PERIOD"]
[421608690,1777952831000,-190.394706,0.00039471,33]
[421608685,1777952831000,-150.0,0.00039255,7]
[421608688,1777952831000,-500.0,0.00039382,2]
[421608683,1777952831000,-152.0,0.00039078,4]
[421608684,1777952831000,-150.0,0.00039088,7]
[421608697,1777952832000,-34196.46800306,0.00039591,2]
[421608696,1777952832000,-773.0,0.00036773,30]
[421608699,1777952836000,-151.0,0.00018277,2]
[421608700,1777952836000,-151.0,0.00018277,2]
[421608702,1777952836000,-190.394706,0.00039471,33]
[421608698,1777952836000,-151.0,0.00018277,2]
[421608703,1777952836000,-293.11,0.00039581,10]
[421608704,1777952836000,-991.47060864,0.00039591,2]
[421608705,1777952836000,-5614.61485871,0.00039591,2]
[421608701,1777952836000,-350.0,0.00039316,4]
[421608708,1777952839000,-90.28038308,0.00018277,2]
[421608706,1777952839000,-151.0,0.00018277,2]
[421608707,1777952839000,-151.0,0.00018277,2]
[421608746,1777953033000,-150.99,0.00030369,2]
[421608744,1777953033000,-9999.99,0.00030369,2]
[421608755,1777953033000,-152.86,0.00034472,7]
[421608745,1777953033000,-14370.8,0.00030369,2]
[421608748,1777953033000,-151.7,0.00032273,30]
[421608749,1777953033000,-171.97,0.00032907,30]
[421608750,1777953033000,-152.86,0.00033023,2]
[421608752,1777953033000,-2477.776,0.00034142,2]
[421608754,1777953033000,-151.7,0.00034176,7]
[421608753,1777953033000,-928.0,0.00034142,2]
[421608759,1777953033000,-151.7,0.00037032,7]
[421608756,1777953033000,-151.7,0.00035128,30]
[421608747,1777953033000,-151.7,0.00031321,7]
[421608751,1777953033000,-151.7,0.00033225,2]
[421608760,1777953033000,-171.97,0.00037032,2]
[421608761,1777953033000,-151.7,0.00037984,30]
[421608757,1777953033000,-152.86,0.00035921,30]
[421608762,1777953033000,-151.7,0.00038936,2]
[421608774,1777953033000,-2594.1613882,0.00039591,2]
[421608769,1777953033000,-523151.2954,0.00039491,2]
[421608777,1777953033000,-743.0,0.00039591,30]
[421608776,1777953033000,-43470.3206626,0.00039591,2]
[421608764,1777953033000,-204.61,0.00038968,2]
[421608767,1777953033000,-203.55,0.00039481,10]
[421608758,1777953033000,-151.7,0.0003608,2]
[421608743,1777953033000,-4024.24,0.00030369,2]
[421608737,1777953033000,-151.7,0.00029417,30]
[421608741,1777953033000,-9999.99,0.00030369,2]
[421608768,1777953033000,-169.62,0.00039481,10]
[421608716,1777953033000,-300.0,0.00018276,2]
[421608717,1777953033000,-60.71961692,0.00018277,2]
[421608720,1777953033000,-151.0,0.00018277,2]
[421608719,1777953033000,-151.0,0.00018277,2]
[421608724,1777953033000,-151.0,0.00018277,2]
[421608721,1777953033000,-151.0,0.00018277,2]
[421608728,1777953033000,-151.0,0.00018277,2]
[421608726,1777953033000,-151.0,0.00018277,2]
[421608723,1777953033000,-151.0,0.00018277,2]
[421608718,1777953033000,-151.0,0.00018277,2]
[421608742,1777953033000,-299.99,0.00030369,12]
[421608727,1777953033000,-151.0,0.00018277,2]
[421608725,1777953033000,-151.0,0.00018277,2]
[421608730,1777953033000,-151.0,0.00018277,2]
[421608729,1777953033000,-151.0,0.00018277,2]
[421608731,1777953033000,-154.19379154,0.00018277,2]
[421608734,1777953033000,-151.7,0.00027513,2]
[421608733,1777953033000,-171.97,0.00024658,2]
[421608735,1777953033000,-151.7,0.00028465,7]
[421608732,1777953033000,-162.51838138,0.00020159,2]
[421608740,1777953033000,-10359.5,0.00030369,2]
[421608739,1777953033000,-9999.99,0.00030369,2]
[421608738,1777953033000,-151.7,0.00030369,2]
[421608722,1777953033000,-151.0,0.00018277,2]
[421608766,1777953033000,-244.26,0.00039471,10]
[421608736,1777953033000,-171.97,0.00028782,7]
[421608770,1777953033000,-360.90989525,0.0003958,2]
[421608805,1777953033000,-155.42950694,0.00039777,14]
[421608810,1777953033000,-1603.70259909,0.00039778,7]
[421608811,1777953033000,-1663.03959526,0.00039778,7]
[421608809,1777953033000,-1546.48273779,0.00039778,7]
[421608808,1777953033000,-1491.30447232,0.00039778,7]
[421608806,1777953033000,-1386.78395259,0.00039778,7]
[421608812,1777953033000,-1724.57206028,0.00039778,7]
[421608815,1777953033000,-1923.16973117,0.00039778,7]
[421608814,1777953033000,-1854.55133189,0.00039778,7]
[421608819,1777953033000,-500.0,0.00039779,30]
[421608820,1777953033000,-160.5254781,0.00039779,30]
[421608817,1777953033000,-879.00349269,0.00039779,30]
[421608818,1777953033000,-151.0,0.00039779,30]
[421608824,1777953033000,-500.0,0.00039779,30]
[421608822,1777953033000,-500.0,0.00039779,30]
[421608823,1777953033000,-151.0,0.00039779,30]
[421608821,1777953033000,-151.0,0.00039779,30]
[421608825,1777953033000,-500.0,0.00039779,30]
[421608827,1777953033000,-500.0,0.00039779,30]
[421608826,1777953033000,-151.0,0.00039779,30]
[421608828,1777953033000,-151.0,0.00039779,30]
[421608829,1777953033000,-500.0,0.00039779,30]
[421608830,1777953033000,-151.0,0.00039779,30]
[421608831,1777953033000,-489.80489431,0.00039779,30]
[421608772,1777953033000,-18081.29189449,0.00039591,2]
[421608807,1777953033000,-1438.09495884,0.00039778,7]
[421608804,1777953033000,-150.0,0.00039758,7]
[421608816,1777953033000,-1994.32701123,0.00039778,7]
[421608803,1777953033000,-7050.4476,0.0003968,2]
[421608779,1777953033000,-230.85828061,0.00039679,15]
[421608813,1777953033000,-1788.38122651,0.00039778,7]
[421608781,1777953033000,-501.52490502,0.00039679,15]
[421608778,1777953033000,-150.0,0.00039609,7]
[421608780,1777953033000,-500.0,0.00039679,15]
[421608786,1777953033000,-500.0,0.00039679,15]
[421608787,1777953033000,-500.0,0.00039679,15]
[421608785,1777953033000,-500.0,0.00039679,15]
[421608788,1777953033000,-500.0,0.00039679,15]
[421608783,1777953033000,-465.90794738,0.00039679,15]
[421608782,1777953033000,-501.58299565,0.00039679,15]
[421608784,1777953033000,-500.0,0.00039679,15]
[421608791,1777953033000,-500.0,0.00039679,15]
[421608789,1777953033000,-500.0,0.00039679,15]
[421608794,1777953033000,-500.0,0.00039679,15]
[421608801,1777953033000,-500.0,0.00039679,15]
[421608796,1777953033000,-500.0,0.00039679,15]
[421608800,1777953033000,-500.0,0.00039679,15]
[421608798,1777953033000,-500.0,0.00039679,15]
[421608799,1777953033000,-532.35056514,0.00039679,15]
[421608802,1777953033000,-200.0,0.00039679,30]
[421608795,1777953033000,-500.0,0.00039679,15]
[421608792,1777953033000,-500.0,0.00039679,15]
[421608790,1777953033000,-500.0,0.00039679,15]
[421608793,1777953033000,-500.0,0.00039679,15]
[421608797,1777953033000,-500.0,0.00039679,15]
[421608861,1777953034000,-168.3888056,0.00039779,30]
[421608841,1777953034000,-260.287,0.00039779,30]
[421608854,1777953034000,-151.0,0.00039779,30]
[421608853,1777953034000,-332.34850278,0.00039779,30]
[421608852,1777953034000,-500.0,0.00039779,30]
[421608851,1777953034000,-158.09655178,0.00039779,30]
[421608838,1777953034000,-251.0,0.00039779,30]
[421608848,1777953034000,-151.0,0.00039779,30]
[421608845,1777953034000,-500.0,0.00039779,30]
[421608840,1777953034000,-151.0,0.00039779,30]
[421608850,1777953034000,-666.12485304,0.00039779,30]
[421608839,1777953034000,-500.0,0.00039779,30]
[421608843,1777953034000,-151.0,0.00039779,30]
[421608846,1777953034000,-151.0,0.00039779,30]
[421608844,1777953034000,-279.92821434,0.00039779,30]
[421608837,1777953034000,-151.0,0.00039779,30]
[421608835,1777953034000,-151.0,0.00039779,30]
[421608833,1777953034000,-151.0,0.00039779,30]
[421608832,1777953034000,-151.0,0.00039779,30]
[421608834,1777953034000,-1013.33108711,0.00039779,30]
[421608836,1777953034000,-500.0,0.00039779,30]
[421608860,1777953034000,-162.380719,0.00039779,30]
[421608842,1777953034000,-500.0,0.00039779,30]
[421608849,1777953034000,-500.0,0.00039779,30]
[421608847,1777953034000,-500.0,0.00039779,30]
[421608857,1777953034000,-417.9775445,0.00039779,30]
[421608855,1777953034000,-500.0,0.00039779,30]
[421608880,1777953034000,-194.86392482,0.0003949,15]
[421608877,1777953034000,-500.0,0.0003949,15]
[421608881,1777953034000,-4667.31855558,0.0003988,2]
[421608876,1777953034000,-400.18673518,0.0003949,15]
[421608879,1777953034000,-263.49879922,0.0003949,15]
[421608878,1777953034000,-500.0,0.0003949,15]
[421608874,1777953034000,-296.84404453,0.0003949,15]
[421608875,1777953034000,-18.5840524,0.0003949,15]
[421608866,1777953034000,-187.24529006,0.0003987,2]
[421608870,1777953034000,-8320.97343231,0.0003988,47]
[421608873,1777953034000,-104293.40374272,0.0003988,2]
[421608868,1777953034000,-725.0,0.0003988,5]
[421608871,1777953034000,-206759.3366129,0.0003988,2]
[421608856,1777953034000,-209.39420802,0.00039779,30]
[421608859,1777953034000,-156.587,0.00039779,30]
[421608872,1777953034000,-65063.68656233,0.0003988,2]
[421608862,1777953034000,-198.8250856,0.0003978,2]
[421608858,1777953034000,-151.0,0.00039779,30]
[421608864,1777953034000,-10118.03,0.000398,7]
[421608863,1777953034000,-154.47454476,0.0003978,7]
[421608865,1777953034000,-162.51838138,0.000398,7]
[421608867,1777953034000,-314.0,0.0003988,5]
[421608869,1777953034000,-715.0,0.0003988,5]
[421608894,1777953037000,-167.66,0.00035419,2]
[421608887,1777953037000,-145.47537377,0.00027513,30]
[421608888,1777953037000,-14.56462623,0.00027513,30]
[421608886,1777953037000,-160.04,0.00026085,7]
[421608885,1777953037000,-160.04,0.00024658,2]
[421608891,1777953037000,-167.66,0.00033071,2]
[421608893,1777953037000,-167.66,0.00034636,30]
[421608892,1777953037000,-167.66,0.00033853,7]
[421608889,1777953037000,-160.04,0.00028941,2]
[421608890,1777953037000,-622.22848782,0.000318,2]
[421608895,1777953037000,-167.66,0.00036202,7]
[421608905,1777953037000,-1220.7997463,0.00039888,2]
[421608900,1777953037000,-500.0,0.0003949,15]
[421608901,1777953037000,-320562.55163309,0.0003988,2]
[421608907,1777953037000,-360.90989524,0.00039976,2]
[421608908,1777953037000,-150.0,0.00039981,7]
[421608902,1777953037000,-3371.56885697,0.0003988,2]
[421608909,1777953037000,-2325.42143886,0.0003999,2]
[421608896,1777953037000,-167.66,0.00036985,30]
[421608897,1777953037000,-167.71,0.00037767,2]
[421608906,1777953037000,-155.911617,0.000399,120]
[421608898,1777953037000,-500.0,0.0003949,15]
[421608904,1777953037000,-914.95017699,0.00039888,15]
[421608899,1777953037000,-371.57857799,0.0003949,15]
[421608903,1777953037000,-506.0,0.0003988,30]
[421608949,1777953038000,-600.0,0.00041096,120]
[421608945,1777953038000,-1559.0,0.00041096,120]
[421608950,1777953038000,-150.0,0.00041098,30]
[421608948,1777953038000,-215.41,0.00041096,60]
[421608939,1777953038000,-671.07197812,0.00040949,30]
[421608943,1777953038000,-150.0,0.00041024,7]
[421608938,1777953038000,-666.0,0.00040949,30]
[421608936,1777953038000,-150.0,0.00040875,7]
[421608951,1777953038000,-482.68109495,0.00041119,120]
[421608937,1777953038000,-300.0,0.00040949,10]
[421608947,1777953038000,-791.24,0.00041096,60]
[421608954,1777953038000,-360.90989524,0.00041166,28]
[421608958,1777953038000,-14881.48788277,0.00041209,70]
[421608955,1777953038000,-1627.0,0.00041171,11]
[421608953,1777953038000,-1220.7997463,0.00041122,15]
[421608957,1777953038000,-247.2176967,0.000412,120]
[421608963,1777953038000,-1220.7997463,0.0004143,15]
[421608965,1777953038000,-167.0,0.000415,120]
[421608969,1777953038000,-150.0,0.00041545,30]
[421608967,1777953038000,-2164.2598268,0.0004152,2]
[421608971,1777953038000,-518.0,0.00041554,17]
[421608959,1777953038000,-150.0,0.00041322,30]
[421608956,1777953038000,-2126.89899959,0.00041183,2]
[421608973,1777953038000,-360.90989524,0.00041562,28]
[421608935,1777953038000,-1220.7997463,0.00040813,15]
[421608952,1777953038000,-914.95017699,0.00041119,15]
[421608942,1777953038000,-10118.03,0.00041,7]
[421608917,1777953038000,-859.0,0.0004,120]
[421608960,1777953038000,-150.0,0.00041377,30]
[421608915,1777953038000,-762.0,0.0004,120]
[421608918,1777953038000,-914.95017699,0.00040196,15]
[421608916,1777953038000,-9845.67660834,0.0004,120]
[421608910,1777953038000,-10064.29,0.0004,120]
[421608914,1777953038000,-5282.52938,0.0004,2]
[421608912,1777953038000,-17587.74731189,0.0004,120]
[421608911,1777953038000,-3913.0,0.0004,20]
[421608913,1777953038000,-177.0497705,0.0004,30]
[421608919,1777953038000,-1220.7997463,0.00040197,15]
[421608921,1777953038000,-1066.67740768,0.000403,30]
[421608922,1777953038000,-1066.67740768,0.000403,30]
[421608926,1777953038000,-360.90989524,0.00040373,28]
[421608928,1777953038000,-150.0,0.00040428,7]
[421608923,1777953038000,-1066.67740768,0.000403,30]
[421608924,1777953038000,-150.0,0.00040316,30]
[421608925,1777953038000,-150.0,0.00040316,7]
[421608927,1777953038000,-219.8,0.000404,20]
[421608930,1777953038000,-1220.7997463,0.00040505,15]
[421608929,1777953038000,-914.95017699,0.00040504,15]
[421608920,1777953038000,-150.0,0.00040205,7]
[421608932,1777953038000,-351.45805105,0.0004075,120]
[421608933,1777953038000,-360.90989524,0.00040769,28]
[421608940,1777953038000,-34997.0,0.0004095,60]
[421608931,1777953038000,-150.0,0.00040651,7]
[421608941,1777953038000,-2736.7466232,0.00041,120]
[421608934,1777953038000,-914.95017699,0.00040812,15]
[421608961,1777953038000,-914.95017699,0.00041427,15]
[421609047,1777953038000,-3027.0,0.00042,120]
[421608987,1777953038000,-8258.0525305,0.0004179,2]
[421609044,1777953038000,-2114.88602074,0.00042,120]
[421609038,1777953038000,-159.03162782,0.00042,120]
[421609046,1777953038000,-223.41482106,0.00042,120]
[421609048,1777953038000,-3000.0,0.00042,120]
[421609050,1777953038000,-2000.0,0.00042,120]
[421609052,1777953038000,-914.95017699,0.00042043,15]
[421609054,1777953038000,-1220.7997463,0.00042047,15]
[421609056,1777953038000,-1102.73,0.00042192,120]
[421609058,1777953038000,-263.0,0.00042192,120]
[421609060,1777953038000,-1011.1,0.000422,120]
[421609062,1777953038000,-176.05817421,0.000422,30]
[421609069,1777953038000,-482.9116417,0.0004222,2]
[421609067,1777953038000,-150.0,0.00042215,30]
[421609071,1777953038000,-231.35,0.00042247,120]
[421609075,1777953038000,-1179.7497295,0.00042281,2]
[421609073,1777953038000,-1842.6205836,0.0004228,2]
[421609077,1777953038000,-2164.2598268,0.00042281,2]
[421609084,1777953038000,-13202.8056527,0.00042345,120]
[421609081,1777953038000,-979.1518,0.00042338,120]
[421609086,1777953038000,-1898.96099122,0.00042345,120]
[421609089,1777953038000,-1133.10000002,0.00042345,120]
[421609080,1777953038000,-34997.0,0.000423,60]
[421609094,1777953038000,-3327.25810164,0.00042345,120]
[421609092,1777953038000,-160.04,0.00030369,7]
[421608977,1777953038000,-1559.0,0.00041644,120]
[421609035,1777953038000,-150.0,0.00041992,30]
[421609042,1777953038000,-177.66874637,0.00042,120]
[421609065,1777953038000,-10118.03,0.000422,7]
[421609033,1777953038000,-360.90989524,0.00041959,28]
[421608992,1777953038000,-170.04028,0.0004179,120]
[421609029,1777953038000,-1078.21,0.000419,120]
[421608990,1777953038000,-151.0,0.0004179,120]
[421608976,1777953038000,-1071.73,0.00041571,120]
[421608980,1777953038000,-2822.0,0.000417,7]
[421608984,1777953038000,-1220.7997463,0.00041738,15]
[421608982,1777953038000,-914.95017699,0.00041735,15]
[421608996,1777953038000,-239.757365,0.0004179,120]
[421608986,1777953038000,-150.0,0.00041768,30]
[421609000,1777953038000,-187.096622,0.0004179,120]
[421608998,1777953038000,-178.723324,0.0004179,120]
[421609002,1777953038000,-153.417185,0.0004179,120]
[421609005,1777953038000,-177.413788,0.0004179,120]
[421608994,1777953038000,-151.0,0.0004179,120]
[421609011,1777953038000,-191.629563,0.0004179,120]
[421609006,1777953038000,-174.742878,0.0004179,7]
[421609040,1777953038000,-232.69169782,0.00042,120]
[421609027,1777953038000,-1283.64392104,0.00041877,120]
[421609024,1777953038000,-9699.5396111,0.0004179,2]
[421609022,1777953038000,-5287.2714687,0.0004179,2]
[421609031,1777953038000,-1170.34262103,0.00041955,120]
[421609019,1777953038000,-151.000005,0.0004179,120]
[421609017,1777953038000,-153.590974,0.0004179,120]
[421609013,1777953038000,-199.396618,0.0004179,120]
[421609009,1777953038000,-151.0,0.0004179,120]
[421609015,1777953038000,-153.674723,0.0004179,120]
[421609128,1777953039000,-51.63296704,0.00042381,7]
[421609136,1777953039000,-500.0,0.00042438,7]
[421609138,1777953039000,-500.0,0.00042438,7]
[421609135,1777953039000,-500.0,0.00042438,7]
[421609133,1777953039000,-152.0,0.00042425,5]
[421609127,1777953039000,-250.0,0.00042356,120]
[421609130,1777953039000,-1337.30371513,0.00042391,30]
[421609141,1777953039000,-500.0,0.00042438,7]
[421609129,1777953039000,-106.0911165,0.00042381,7]
[421609131,1777953039000,-200.0,0.000424,10]
[421609120,1777953039000,-914.95017699,0.00042351,15]
[421609123,1777953039000,-250.0,0.00042356,120]
[421609125,1777953039000,-250.0,0.00042356,120]
[421609124,1777953039000,-250.0,0.00042356,120]
[421609121,1777953039000,-1220.7997463,0.00042355,15]
[421609122,1777953039000,-360.90989524,0.00042355,28]
[421609119,1777953039000,-198.82508559,0.00042351,7]
[421609115,1777953039000,-937.5,0.00042345,120]
[421609116,1777953039000,-2298.27441512,0.00042345,120]
[421609117,1777953039000,-7158.51413007,0.00042345,120]
[421609118,1777953039000,-992.93189535,0.00042351,2]
[421609114,1777953039000,-43.58670923,0.00042345,120]
[421609139,1777953039000,-500.0,0.00042438,7]
[421609126,1777953039000,-250.0,0.00042356,120]
[421609140,1777953039000,-500.0,0.00042438,7]
[421609146,1777953039000,-500.0,0.00042438,7]
[421609144,1777953039000,-500.0,0.00042438,7]
[421609142,1777953039000,-500.0,0.00042438,7]
[421609168,1777953039000,-160.04,0.00034652,7]
[421609167,1777953039000,-160.04,0.00033224,2]
[421609166,1777953039000,-160.04,0.00031797,30]
[421609162,1777953039000,-364.50305797,0.00042438,7]
[421609159,1777953039000,-500.0,0.00042438,7]
[421609160,1777953039000,-500.0,0.00042438,7]
[421609155,1777953039000,-500.0,0.00042438,7]
[421609154,1777953039000,-152.059288,0.00042438,120]
[421609153,1777953039000,-180.127043,0.00042438,120]
[421609148,1777953039000,-509.45885264,0.00042438,7]
[421609149,1777953039000,-500.0,0.00042438,7]
[421609161,1777953039000,-40.48717266,0.00042438,7]
[421609151,1777953039000,-500.0,0.00042438,7]
[421609158,1777953039000,-500.0,0.00042438,7]
[421609143,1777953039000,-612.27639599,0.00042438,7]
[421609137,1777953039000,-500.0,0.00042438,7]
[421609156,1777953039000,-500.0,0.00042438,7]
[421609132,1777953039000,-8147.0,0.00042411,120]
[421609157,1777953039000,-500.0,0.00042438,7]
[421609150,1777953039000,-500.0,0.00042438,7]
[421609147,1777953039000,-500.0,0.00042438,7]
[421609152,1777953039000,-484.83664983,0.00042438,7]
[421609145,1777953039000,-500.0,0.00042438,7]
[421609134,1777953039000,-500.0,0.00042438,7]
[421609191,1777953040000,-474.13634346,0.00042438,7]
[421609194,1777953040000,-500.0,0.00042438,7]
[421609196,1777953040000,-500.0,0.00042438,7]
[421609195,1777953040000,-500.0,0.00042438,7]
[421609193,1777953040000,-500.0,0.00042438,7]
[421609201,1777953040000,-500.0,0.00042438,7]
[421609197,1777953040000,-603.72608291,0.00042438,7]
[421609199,1777953040000,-500.0,0.00042438,7]
[421609198,1777953040000,-500.0,0.00042438,7]
[421609209,1777953040000,-500.0,0.00042438,7]
[421609200,1777953040000,-500.0,0.00042438,7]
[421609206,1777953040000,-500.0,0.00042438,7]
[421609208,1777953040000,-500.0,0.00042438,7]
[421609204,1777953040000,-500.0,0.00042438,7]
[421609212,1777953040000,-500.0,0.00042438,7]
[421609211,1777953040000,-500.0,0.00042438,7]
[421609188,1777953040000,-500.0,0.00042438,7]
[421609214,1777953040000,-500.0,0.00042438,7]
[421609203,1777953040000,-500.0,0.00042438,7]
[421609190,1777953040000,-500.0,0.00042438,7]
[421609174,1777953040000,-500.0,0.00042438,7]
[421609186,1777953040000,-500.0,0.00042438,7]
[421609207,1777953040000,-500.0,0.00042438,7]
[421609169,1777953040000,-160.04,0.0003608,30]
[421609171,1777953040000,-160.1,0.00038936,7]
[421609181,1777953040000,-500.0,0.00042438,7]
[421609170,1777953040000,-160.04,0.00037508,2]
[421609178,1777953040000,-500.0,0.00042438,7]
[421609172,1777953040000,-95.00976937,0.00042438,7]
[421609179,1777953040000,-500.0,0.00042438,7]
[421609176,1777953040000,-500.0,0.00042438,7]
[421609175,1777953040000,-500.0,0.00042438,7]
[421609173,1777953040000,-500.0,0.00042438,7]
[421609177,1777953040000,-500.0,0.00042438,7]
[421609180,1777953040000,-500.0,0.00042438,7]
[421609182,1777953040000,-500.0,0.00042438,7]
[421609184,1777953040000,-500.0,0.00042438,7]
[421609183,1777953040000,-500.0,0.00042438,7]
[421609192,1777953040000,-500.0,0.00042438,7]
[421609187,1777953040000,-500.0,0.00042438,7]
[421609189,1777953040000,-500.0,0.00042438,7]
[421609185,1777953040000,-500.0,0.00042438,7]
[421609210,1777953040000,-500.0,0.00042438,7]
[421609202,1777953040000,-500.0,0.00042438,7]
[421609215,1777953040000,-500.0,0.00042438,7]
[421609232,1777953040000,-500.0,0.00042438,7]
[421609240,1777953040000,-2166.75,0.00042438,7]
[421609250,1777953040000,-500.0,0.00042438,7]
[421609239,1777953040000,-2166.75,0.00042438,7]
[421609249,1777953040000,-500.0,0.00042438,7]
[421609246,1777953040000,-500.0,0.00042438,7]
[421609244,1777953040000,-500.0,0.00042438,7]
[421609241,1777953040000,-2166.75,0.00042438,7]
[421609245,1777953040000,-500.0,0.00042438,7]
[421609242,1777953040000,-2166.75,0.00042438,7]
[421609243,1777953040000,-500.0,0.00042438,7]
[421609247,1777953040000,-500.0,0.00042438,7]
[421609248,1777953040000,-500.0,0.00042438,7]
[421609252,1777953040000,-500.0,0.00042438,7]
[421609256,1777953040000,-193.31520628,0.00042438,7]
[421609257,1777953040000,-200.7608392,0.00042438,7]
[421609254,1777953040000,-500.0,0.00042438,7]
[421609253,1777953040000,-500.0,0.00042438,7]
[421609205,1777953040000,-500.0,0.00042438,7]
[421609238,1777953040000,-2166.75,0.00042438,7]
[421609233,1777953040000,-270.7319159,0.00042438,7]
[421609251,1777953040000,-500.0,0.00042438,7]
[421609236,1777953040000,-2166.75,0.00042438,7]
[421609213,1777953040000,-500.0,0.00042438,7]
[421609234,1777953040000,-2166.75,0.00042438,7]
[421609216,1777953040000,-500.0,0.00042438,7]
[421609226,1777953040000,-571.78451707,0.00042438,7]
[421609217,1777953040000,-500.0,0.00042438,7]
[421609219,1777953040000,-500.0,0.00042438,7]
[421609223,1777953040000,-500.0,0.00042438,7]
[421609225,1777953040000,-268.65020927,0.00042438,7]
[421609222,1777953040000,-500.0,0.00042438,7]
[421609224,1777953040000,-500.0,0.00042438,7]
[421609218,1777953040000,-500.0,0.00042438,7]
[421609220,1777953040000,-500.0,0.00042438,7]
[421609221,1777953040000,-500.0,0.00042438,7]
[421609227,1777953040000,-316.38323879,0.00042438,7]
[421609230,1777953040000,-500.0,0.00042438,7]
[421609229,1777953040000,-500.0,0.00042438,7]
[421609237,1777953040000,-2166.75,0.00042438,7]
[421609228,1777953040000,-500.0,0.00042438,7]
[421609255,1777953040000,-306.68479372,0.00042438,7]
[421609231,1777953040000,-500.0,0.00042438,7]
[421609235,1777953040000,-2166.75,0.00042438,7]
[421609276,1777953041000,-500.0,0.00042438,7]
[421609277,1777953041000,-500.0,0.00042438,7]
[421609279,1777953041000,-500.0,0.00042438,7]
[421609278,1777953041000,-500.0,0.00042438,7]
[421609285,1777953041000,-500.0,0.00042438,7]
[421609281,1777953041000,-500.0,0.00042438,7]
[421609288,1777953041000,-500.0,0.00042438,7]
[421609280,1777953041000,-500.0,0.00042438,7]
[421609282,1777953041000,-583.90549215,0.00042438,7]
[421609286,1777953041000,-500.0,0.00042438,7]
[421609283,1777953041000,-500.0,0.00042438,7]
[421609274,1777953041000,-500.0,0.00042438,7]
[421609284,1777953041000,-500.0,0.00042438,7]
[421609287,1777953041000,-499.84927478,0.00042438,7]
[421609275,1777953041000,-500.0,0.00042438,7]
[421609266,1777953041000,-500.0,0.00042438,7]
[421609270,1777953041000,-500.0,0.00042438,7]
[421609290,1777953041000,-500.0,0.00042438,7]
[421609259,1777953041000,-1417.93266639,0.00041183,2]
[421609258,1777953041000,-622.22848781,0.000318,2]
[421609265,1777953041000,-500.0,0.00042438,7]
[421609260,1777953041000,-299.2391608,0.00042438,7]
[421609262,1777953041000,-500.0,0.00042438,7]
[421609273,1777953041000,-500.0,0.00042438,7]
[421609264,1777953041000,-500.0,0.00042438,7]
[421609263,1777953041000,-500.0,0.00042438,7]
[421609267,1777953041000,-500.0,0.00042438,7]
[421609272,1777953041000,-500.0,0.00042438,7]
[421609268,1777953041000,-500.0,0.00042438,7]
[421609271,1777953041000,-500.0,0.00042438,7]
[421609269,1777953041000,-500.0,0.00042438,7]
[421609261,1777953041000,-544.09562598,0.00042438,7]
[421609291,1777953041000,-500.0,0.00042438,7]
[421609289,1777953041000,-500.0,0.00042438,7]
[421609296,1777953041000,-500.0,0.00042438,7]
[421609322,1777953041000,-1201.18,0.00042438,7]
[421609315,1777953041000,-500.0,0.00042438,7]
[421609320,1777953041000,-1201.18,0.00042438,7]
[421609321,1777953041000,-1201.18,0.00042438,7]
[421609324,1777953041000,-1201.18,0.00042438,7]
[421609327,1777953041000,-500.0,0.00042438,7]
[421609318,1777953041000,-500.0,0.00042438,7]